bitfinex/quotes_ETHUSD_20241116
["timestamp","ask_amount","ask_price","bid_price","bid_amount"]
[1731760777807,3.15209,3172.5,3171.9,1.29632423]
[1731760778103,3.1522,3172.4,3171.9,1.29632423]
[1731760778309,3.1522,3172.4,3171.8,3.0]
[1731760778504,3.15159,3173.0,3171.2,3.15328]
[1731760778505,3.1526,3172.0,3171.2,3.15328]
[1731760778742,3.1529,3171.7,3170.8,3.65771225]
[1731760778947,3.1529,3171.7,3171.0,3.15356]
[1731760779295,3.15289,3171.7,3171.0,3.15356]
[1731760779528,0.325159,3172.9,3170.9,0.37928644]
[1731760779529,3.0,3172.6,3170.9,0.37928644]
[1731760779731,3.1526,3172.0,3171.2,3.65771225]
[1731760780341,3.15236,3172.3,3171.2,3.65771225]
[1731760780342,3.15236,3172.3,3171.4,3.15315]
[1731760780639,3.0,3172.9,3171.2,3.65771225]
[1731760780822,3.15218,3172.5,3171.6,3.1529]
[1731760780999,3.15218,3172.5,3171.4,3.15316]
[1731760781000,3.15218,3172.5,3171.5,3.15308]
[1731760781205,3.15219,3172.4,3171.6,3.1529]
[1731760782317,0.62900334,3172.6,3172.0,3.15256]
[1731760783720,0.62900334,3172.6,3172.0,6.30512]
[1731760784044,0.62900334,3172.6,3172.3,3.15227]
[1731760784352,0.62900334,3172.6,3172.2,3.15236]
[1731760784841,3.15159,3173.0,3172.3,3.15227]
[1731760785249,3.15176,3172.9,3172.2,3.15237]
[1731760785402,3.1518,3172.8,3172.2,3.15237]
[1731760785846,3.1518,3172.8,3171.7,3.0]
[1731760785847,3.46698,3172.8,3172.0,3.0]
[1731760786028,3.46698,3172.8,3172.1,3.15241]
[1731760786029,3.1518,3172.8,3172.1,3.15241]
[1731760786744,3.15161,3173.0,3172.2,3.15237]
[1731760786929,3.15161,3173.0,3172.3,3.15227]
[1731760787133,3.15149,3173.1,3172.3,3.15227]
[1731760787337,3.79585245,3173.1,3172.3,3.15227]
[1731760787817,3.15159,3173.0,3171.9,3.15265]
[1731760788150,3.15211,3172.5,3172.0,3.0]
[1731760788458,1.0239477,3173.1,3170.9,3.3146]
[1731760788459,3.15233,3172.3,3170.9,3.3146]
[1731760788794,3.15187,3172.8,3171.5,3.15307]
[1731760788912,3.15235,3172.3,3171.5,3.15307]
[1731760789109,3.15259,3172.0,3171.3,3.15326]
[1731760789513,3.15259,3172.0,3171.4,3.15315]
[1731760789747,3.15239,3172.2,3171.4,3.15315]
[1731760789748,3.15239,3172.2,3171.6,3.15296]
[1731760790648,3.15221,3172.4,3170.8,3.1537]
[1731760790649,3.15269,3171.9,3170.8,3.1537]
[1731760790857,3.15298,3171.6,3170.9,0.31537]
[1731760791161,3.15298,3171.6,3170.4,0.32904063]
[1731760791162,6.467501,3172.3,3170.0,0.49326273]
[1731760791163,3.65771225,3171.0,3170.0,0.49326273]
[1731760791330,3.65771225,3171.0,3169.0,0.0293638]
[1731760791331,6.82132225,3171.0,3169.0,0.0193638]
[1731760791651,0.01,3171.2,3169.0,0.0193638]
[1731760791652,3.0,3170.5,3169.0,0.0193638]
[1731760791822,3.15477,3169.8,3169.0,0.0193638]
[1731760792160,3.0,3170.5,3169.0,0.0193638]
[1731760792161,3.155,3169.6,3169.0,0.0193638]
[1731760792450,3.16388,3170.7,3169.0,0.0193638]
[1731760792451,3.77340055,3170.1,3169.0,0.0193638]
[1731760792693,0.61889055,3170.1,3169.5,3.15506]
[1731760792992,3.15392,3170.7,3169.1,6.82310225]
[1731760792993,3.15392,3170.7,3169.8,3.15476]
[1731760793137,3.15426,3170.4,3169.5,3.15505]
[1731760793476,0.62229277,3170.4,3169.1,3.15546]
[1731760793675,0.62229277,3170.4,3169.2,3.15532]
[1731760793975,3.15449,3170.1,3169.3,3.01722839]
[1731760794179,6.30904,3170.1,3169.4,0.61725484]
[1731760794477,3.15449,3170.1,3169.4,0.61725484]
[1731760794659,0.62229277,3170.4,3169.4,0.61725484]
[1731760794660,3.15465,3170.0,3169.4,0.61725484]
[1731760794974,3.15468,3169.9,3169.3,0.01722839]
[1731760795160,3.15478,3169.8,3169.3,0.01722839]
[1731760795363,3.15486,3169.8,3169.3,0.01722839]
[1731760795682,3.15517,3169.4,3169.3,0.01722839]
[1731760797564,3.470276,3169.8,3169.3,0.01722839]
[1731760797772,3.15479,3169.8,3169.3,0.01722839]
[1731760797944,0.61706342,3169.9,3169.3,0.01722839]
[1731760798544,0.61706342,3169.9,3169.5,3.15502]
[1731760798875,0.61706342,3169.9,3169.3,3.17246839]
[1731760799189,0.61706342,3169.9,3169.3,0.01722839]
[1731760799485,0.60870202,3169.9,3169.4,3.15516]
[1731760799649,0.60870202,3169.9,3169.5,3.15504]
[1731760800481,0.62534681,3170.3,3169.5,3.65771225]
[1731760800642,0.62534681,3170.3,3170.0,3.15449]
[1731760801338,0.62534681,3170.3,3169.9,3.15467]
[1731760801588,3.15367,3171.0,3170.0,3.21765289]
[1731760801766,3.15367,3171.0,3170.1,3.15439]
[1731760801767,3.15365,3171.0,3170.1,3.15439]
[1731760802135,3.15365,3171.0,3170.2,3.15437]
[1731760802343,3.1532,3171.4,3170.6,3.15391]
[1731760802675,3.1532,3171.4,3170.3,0.315437]
[1731760802676,3.15311,3171.5,3170.7,3.1538]
[1731760802845,3.15319,3171.4,3170.8,0.31538]
[1731760803382,3.1533,3171.3,3170.8,0.31538]
[1731760803582,3.1533,3171.3,3170.5,3.15403]
[1731760803830,0.64338141,3171.4,3170.7,3.15387]
[1731760804305,0.64338141,3171.4,3170.2,3.0]
[1731760804578,0.64338141,3171.4,3170.0,3.0]
[1731760804579,3.15367,3171.0,3170.3,3.38802108]
[1731760804778,3.15367,3171.0,3170.0,6.15457]
[1731760804779,0.64338141,3171.4,3170.1,0.66577122]
[1731760804974,0.64338141,3171.4,3170.7,3.15378]
[1731760805558,0.64338141,3171.4,3170.8,3.15368]
[1731760805758,0.64338141,3171.4,3170.9,0.315368]
[1731760805957,3.1531,3171.5,3170.8,3.15368]
[1731760807976,3.15288,3171.7,3170.6,3.15397]
[1731760808176,3.15246,3172.2,3170.6,3.15397]
[1731760808177,3.15324,3171.4,3170.6,3.15396]
[1731760808485,0.63583249,3171.8,3170.3,3.0]
[1731760808697,0.63583249,3171.8,3170.4,3.15414]
[1731760808698,3.15288,3171.7,3170.4,3.15414]
[1731760808862,3.15341,3171.2,3170.4,3.15414]
[1731760809066,3.15341,3171.2,3170.5,3.15406]
[1731760809266,3.15341,3171.2,3170.3,3.85958049]
[1731760809267,3.15322,3171.4,3170.6,3.15395]
[1731760809477,0.63583249,3171.8,3170.6,3.15395]
[1731760809478,3.78867249,3171.8,3170.6,3.15395]
[1731760809889,3.15302,3171.6,3170.9,3.15367]
[1731760811017,3.78867249,3171.8,3171.0,3.15353]
[1731760811355,0.63583249,3171.8,3171.0,0.63072]
[1731760811463,0.63583249,3171.8,3171.0,3.15352]
[1731760811464,3.15286,3171.8,3171.0,3.15352]
[1731760812267,3.15286,3171.8,3171.1,3.15347]
[1731760812571,3.15286,3171.8,3171.2,0.315347]
[1731760812778,3.15286,3171.8,3171.1,3.15347]
[1731760813074,3.15286,3171.8,3171.1,3.15339]
[1731760813993,3.15299,3171.6,3170.2,3.0]
[1731760814189,3.15245,3172.2,3170.3,0.23410315]
[1731760814377,3.15325,3171.4,3170.6,3.15396]
[1731760814710,3.15325,3171.4,3170.7,3.15383]
[1731760815418,3.15308,3171.5,3170.6,3.15396]
[1731760815632,3.15322,3171.4,3170.6,3.15396]
[1731760815795,3.15322,3171.4,3170.7,3.15386]
[1731760815997,3.15322,3171.4,3170.6,3.15397]
[1731760816323,4.29655796,3172.1,3171.0,3.15355]
[1731760816324,3.1528,3171.8,3171.0,3.15355]
[1731760816526,3.1528,3171.8,3171.1,3.15342]
[1731760817412,3.1527,3171.9,3170.6,3.15391]
[1731760817630,3.1527,3171.9,3170.2,0.01]
[1731760817631,3.15295,3171.7,3170.7,0.315391]
[1731760817833,3.15273,3171.9,3171.1,3.15339]
[1731760818010,3.15273,3171.9,3170.5,3.15402]
[1731760818011,3.15289,3171.7,3170.9,3.15361]
[1731760818335,3.15289,3171.7,3170.6,3.0]
[1731760818491,3.15273,3171.9,3170.3,0.55]
[1731760818890,3.1528,3171.8,3171.1,3.1534]
[1731760819333,3.15273,3171.9,3170.9,3.15366]
[1731760819633,3.15295,3171.7,3170.9,3.469026]
[1731760819842,3.79139571,3172.1,3171.4,3.15315]
[1731760820024,3.79139571,3172.1,3170.9,0.315366]
[1731760820025,1.2603,3172.7,3171.9,3.15265]
[1731760820198,3.77895165,3172.7,3172.0,3.1525]
[1731760820398,3.15221,3172.4,3171.7,3.15283]
[1731760820597,3.15221,3172.4,3171.8,3.15277]
[1731760821198,3.15221,3172.4,3171.5,3.15306]
[1731760821537,3.15221,3172.4,3171.2,3.15335]
[1731760821538,0.315221,3172.4,3171.3,3.15328]
[1731760821703,3.15268,3171.9,3171.3,3.15328]
[1731760822079,3.15281,3171.8,3171.1,6.15345]
[1731760822198,3.15291,3171.7,3171.0,3.15357]
[1731760822401,3.15291,3171.7,3171.1,3.15347]
[1731760822655,3.468047,3171.9,3171.1,3.15347]
[1731760822857,3.1525,3172.1,3171.3,3.15319]
[1731760823035,3.15261,3172.0,3171.3,3.15319]
[1731760823433,3.15209,3172.5,3171.8,3.15271]
[1731760823869,3.15226,3172.4,3171.6,3.15297]
[1731760824066,3.15226,3172.4,3171.4,3.15315]
[1731760824067,3.15259,3172.0,3171.4,3.15315]
[1731760824566,3.15259,3172.0,3171.2,3.15337]
[1731760824860,3.15259,3172.0,3171.4,3.15317]
[1731760826267,0.61967906,3172.1,3171.0,6.15351]
[1731760826565,3.15291,3171.7,3171.0,6.15351]
[1731760827164,3.15291,3171.7,3170.2,0.3346]
[1731760827165,3.15345,3171.2,3170.2,3.15428]
[1731760827457,0.315291,3171.7,3169.3,3.65771225]
[1731760827458,3.15385,3170.8,3169.3,3.65771225]
[1731760827661,3.65771225,3171.3,3169.3,3.65771225]
[1731760827662,3.15318,3171.4,3170.4,3.15415]
[1731760827881,3.15345,3171.2,3170.5,3.15406]
[1731760828023,3.15345,3171.2,3170.6,3.15388]
[1731760828024,0.64471394,3171.2,3170.6,3.15388]
[1731760828369,3.65771225,3172.1,3171.1,3.1534]
[1731760828370,6.81022225,3172.1,3171.1,3.1534]
[1731760828517,6.81022225,3172.1,3170.4,3.1541]
[1731760828518,0.36577123,3172.0,3171.3,3.15321]
[1731760828716,3.15251,3172.1,3171.3,3.15321]
[1731760828920,3.15251,3172.1,3171.4,3.15316]
[1731760829226,3.15228,3172.3,3171.7,3.15287]
[1731760829421,0.63998637,3171.9,3171.7,3.15287]
[1731760829623,3.65771225,3172.9,3171.7,3.15287]
[1731760829624,3.15161,3173.0,3171.9,3.15268]
[1731760829855,3.1519,3172.7,3171.9,3.15268]
[1731760830056,3.1519,3172.7,3171.7,3.15286]
[1731760830057,3.65771225,3173.7,3171.5,3.15308]
[1731760830058,0.6276947,3173.0,3171.5,3.15308]
[1731760830277,0.6276947,3173.0,3172.5,3.15207]
[1731760830557,0.6276947,3173.0,3172.7,3.1518]
[1731760830763,0.6276947,3173.0,3172.5,3.15206]
[1731760831462,3.15137,3173.3,3172.5,3.15206]
[1731760831651,3.15146,3173.2,3172.6,35.0]
[1731760831959,3.15161,3173.0,3172.6,35.0]
[1731760832172,3.15179,3172.8,3172.7,0.05705502]
[1731760832840,3.15166,3173.0,3171.6,3.0]
[1731760833055,3.15166,3173.0,3171.7,0.05731998]
[1731760833056,3.1523,3172.3,3171.7,0.05731998]
[1731760833479,3.15174,3172.9,3171.8,3.06305167]
[1731760833758,3.15149,3173.1,3172.4,3.15214]
[1731760834273,3.15149,3173.1,3172.5,35.05707161]
[1731760834956,3.7817982,3173.3,3172.5,38.20914161]
[1731760835346,3.7817982,3173.3,3172.5,35.05707161]
[1731760835347,0.6304682,3173.3,3172.5,35.05707161]
[1731760835548,3.15188,3172.8,3172.5,0.05707161]
[1731760835746,3.15191,3172.7,3172.5,0.05707161]
[1731760835973,3.15198,3172.6,3171.9,0.31203717]
[1731760836356,3.1517,3172.9,3171.9,0.31203717]
[1731760836561,3.15179,3172.8,3172.0,3.15255]
[1731760836764,3.1516,3173.0,3172.1,3.0]
[1731760836981,0.6304682,3173.3,3172.2,3.15237]
[1731760836982,3.15173,3172.9,3172.2,3.15237]
[1731760837132,3.1514,3173.2,3172.2,0.93051]
[1731760837335,3.15164,3173.0,3172.2,3.15232]
[1731760837536,3.15164,3173.0,3172.3,35.0]
[1731760837750,3.1514,3173.2,3172.4,3.0]
[1731760837978,3.1514,3173.2,3172.5,3.15206]
[1731760838280,3.1514,3173.2,3172.6,0.615206]
[1731760838467,3.15167,3173.0,3172.6,0.615206]
[1731760838634,3.15167,3173.0,3172.4,3.0]
[1731760838984,3.15167,3173.0,3172.0,0.55]
[1731760838985,3.15167,3173.0,3172.2,3.0]
[1731760839140,3.15115,3173.5,3171.4,0.01]
[1731760839141,3.15212,3172.5,3171.4,3.65771225]
[1731760839492,3.1522,3172.4,3171.5,35.0]
[1731760840358,3.15249,3172.1,3171.5,35.0]
[1731760840680,3.15258,3172.0,3171.5,3.14099947]
[1731760840979,3.15258,3172.0,3171.3,38.15326]
[1731760841785,3.15258,3172.0,3171.4,3.55]
[1731760842294,3.15236,3172.3,3171.5,0.05727995]
[1731760842460,3.15236,3172.3,3171.6,3.0]
[1731760842656,3.15239,3172.2,3171.7,0.05722694]
[1731760842900,3.15249,3172.1,3171.6,3.0]
[1731760843101,3.15197,3172.7,3171.8,0.05720044]
[1731760843260,3.15218,3172.5,3171.8,3.21574628]
[1731760843468,3.15216,3172.5,3171.9,0.60720408]
[1731760843660,3.15159,3173.0,3171.9,0.05720408]
[1731760843856,3.15235,3172.3,3171.9,0.05720408]
[1731760844210,3.15235,3172.3,3171.6,6.15297]
[1731760844211,3.15235,3172.3,3172.0,0.05717758]
[1731760844498,3.15235,3172.3,3171.6,0.55]
[1731760844796,0.62265511,3173.0,3171.6,0.55]
[1731760844797,3.15238,3172.2,3171.6,0.670315]
[1731760845017,3.15271,3171.9,3171.7,0.05725709]
[1731760845168,3.15278,3171.8,3171.5,0.55]
[1731760845496,3.15288,3171.7,3171.6,0.05731595]
[1731760845964,3.15244,3172.2,3170.9,3.3146]
[1731760846167,3.15244,3172.2,3170.2,0.01]
[1731760846168,3.15338,3171.2,3170.5,3.15402]
[1731760846363,3.15338,3171.2,3169.9,0.32899438]
[1731760846563,6.30825,3170.5,3169.9,0.32899438]
[1731760846775,3.15427,3170.4,3170.0,0.45638016]
[1731760846995,3.01,3171.6,3170.0,0.0577095]
[1731760846996,3.15447,3170.1,3170.0,0.0577095]
[1731760847164,3.15447,3170.1,3169.0,3.67707605]
[1731760847165,6.66771225,3171.6,3169.7,3.15484]
[1731760847363,3.15382,3170.8,3170.0,3.15453]
[1731760847568,0.62430673,3171.4,3170.1,0.05032496]
[1731760847569,3.15347,3171.1,3170.1,0.05032496]
[1731760847794,3.15417,3170.4,3169.7,3.15482]
[1731760847994,3.15417,3170.5,3169.4,41.81286225]
[1731760847995,3.15436,3170.3,3169.4,38.65771225]
[1731760848299,3.15436,3170.3,3169.7,3.0]
[1731760848514,3.1544,3170.2,3169.7,3.0]
[1731760848802,3.15436,3170.3,3169.8,0.05054324]
[1731760848803,3.15448,3170.1,3169.8,0.05054324]
[1731760849048,3.15448,3170.1,3169.7,3.0]
[1731760849324,3.15448,3170.1,3169.8,0.05050759]
[1731760849727,3.15458,3170.0,3169.0,3.67707605]
[1731760850028,3.1544,3170.2,3169.5,3.15506]
[1731760850314,3.1544,3170.2,3169.1,0.36770761]
[1731760850315,3.1544,3170.2,3169.6,35.0]
[1731760850516,3.1544,3170.2,3169.6,38.15496]
[1731760850722,3.1544,3170.2,3169.7,1.43260998]
[1731760851025,3.15437,3170.3,3169.7,1.43260998]
[1731760851180,3.468856,3171.1,3169.7,1.43260998]
[1731760851383,3.468856,3171.1,3169.3,3.15527]
[1731760851384,3.15357,3171.0,3169.3,3.15527]
[1731760851696,3.15468,3169.9,3169.4,35.0]
[1731760851892,3.15357,3171.0,3169.4,35.0]
[1731760851893,3.15367,3170.9,3169.4,35.0]
[1731760852095,3.15494,3169.7,3169.4,35.0]
[1731760852295,3.15494,3169.7,3169.1,0.36770761]
[1731760852721,3.15494,3169.7,3169.2,35.0]
[1731760853141,3.15457,3170.0,3169.3,3.15527]
[1731760853429,3.65771225,3171.2,3169.5,0.55]
[1731760853430,3.15448,3170.1,3169.5,0.55]
[1731760853628,3.15448,3170.1,3169.1,0.36770761]
[1731760853629,3.15456,3170.1,3169.3,3.15526]
[1731760853792,3.15434,3170.3,3169.4,35.0]
[1731760853990,3.15457,3170.0,3169.4,35.0]
[1731760854538,3.15457,3170.0,3169.2,0.40447837]
[1731760854539,3.15485,3169.8,3169.2,0.40447837]
[1731760854769,3.15417,3170.4,3169.0,0.0193638]
[1731760854770,3.15526,3169.4,3169.0,0.0193638]
[1731760855251,3.15547,3169.1,3169.0,0.0193638]
[1731760855405,3.786552,3169.1,3169.0,0.0193638]
[1731760855909,3.15547,3169.1,3169.0,0.0193638]
[1731760859042,3.15547,3169.1,3169.0,0.05807823]
[1731760859247,3.15537,3169.2,3169.0,0.05807823]
[1731760859550,3.15479,3169.8,3169.0,3.21356823]
[1731760859766,3.15479,3169.8,3169.1,0.38445946]
[1731760859911,3.15453,3170.1,3169.3,3.15524]
[1731760860111,0.02,3171.1,3169.1,0.38445946]
[1731760860112,3.15417,3170.4,3169.4,3.15513]
[1731760860307,3.65771225,3171.3,3169.5,35.315513]
[1731760860308,0.01,3170.9,3169.5,35.315513]
[1731760860646,0.01,3170.9,3169.5,35.0]
[1731760860647,3.15497,3169.6,3169.5,35.0]
[1731760860845,3.1553,3169.3,3169.0,0.0193638]
[1731760861052,3.15547,3169.1,3169.0,0.0193638]
[1731760861213,3.15531,3169.3,3169.0,0.0193638]
[1731760861637,3.15547,3169.1,3169.0,0.0193638]
[1731760864643,3.77640657,3169.1,3169.0,0.0193638]
[1731760865359,0.62093657,3169.1,3169.0,0.0193638]
[1731760865509,3.15507,3169.5,3169.0,0.0193638]
[1731760865851,3.66771225,3170.5,3169.0,0.0193638]
[1731760866146,3.66771225,3170.5,3169.1,0.03872684]
[1731760866147,3.15447,3170.1,3169.1,0.03872684]
[1731760866346,3.15509,3169.5,3169.1,0.03872684]
[1731760867007,3.1549,3169.7,3169.1,0.03872684]
[1731760867210,0.62699325,3169.9,3169.2,3.15528]
[1731760867450,0.39110045,3171.2,3169.3,3.19386135]
[1731760867451,3.15449,3170.1,3169.3,3.19386135]
[1731760867653,3.1548,3169.8,3169.4,0.31938614]
[1731760867863,3.15377,3170.8,3169.0,6.1748438]
[1731760867864,3.15487,3169.7,3169.5,0.03860303]
[1731760868070,3.15487,3169.7,3169.0,6.1748438]
[1731760868280,3.15487,3169.7,3169.1,0.03869532]
[1731760868575,3.15422,3170.4,3169.1,0.03869532]
[1731760868576,0.63279758,3170.4,3169.1,0.03869532]
[1731760868753,0.63279758,3170.4,3169.1,3.19414532]
[1731760868754,3.15484,3169.8,3169.1,3.19414532]
[1731760868917,3.78700758,3170.4,3169.1,3.19414532]
[1731760868918,3.15458,3170.0,3169.3,3.15519]
[1731760869325,3.15458,3170.0,3169.4,0.0386292]
[1731760869520,0.63279758,3170.4,3169.4,0.42742008]
[1731760869764,0.63279758,3170.4,3169.4,0.36432146]
[1731760869765,3.15474,3169.9,3169.4,0.36432146]
[1731760869969,0.63279758,3170.4,3169.4,0.0386292]
[1731760869970,3.1549,3169.7,3169.4,0.0386292]
[1731760870170,3.15504,3169.6,3169.4,0.0386292]
[1731760870336,3.15504,3169.6,3169.0,0.0193638]
[1731760870535,3.15504,3169.6,3169.5,0.03848597]
[1731760870734,3.15504,3169.6,3169.0,0.0193638]
[1731760870942,3.15504,3169.6,3169.5,0.03848597]
[1731760871165,3.15504,3169.6,3169.0,3.79240218]
[1731760871340,3.15504,3169.6,3169.5,0.03848597]
[1731760871536,3.15504,3169.6,3169.0,3.79240218]
[1731760871844,3.15469,3169.9,3169.1,3.15545]
[1731760871845,3.15484,3169.8,3169.1,3.15545]
[1731760872049,3.15484,3169.8,3169.2,0.03856559]
[1731760872449,3.15462,3170.0,3169.3,3.15524]
[1731760872650,3.15468,3169.9,3169.4,0.03851251]
[1731760872970,3.15507,3169.5,3169.4,0.03851251]
[1731760873170,3.786071,3169.5,3169.4,0.03851251]
[1731760873318,3.786071,3169.5,3169.0,0.0193638]
[1731760873319,3.15547,3169.1,3169.0,0.0193638]
[1731760874965,3.15535,3169.3,3169.0,0.0193638]
[1731760875147,3.786091,3169.5,3169.0,0.0193638]
[1731760875148,3.15538,3169.2,3169.0,0.05686418]
[1731760875357,3.15538,3169.2,3169.0,0.0193638]
[1731760875551,3.15538,3169.2,3169.1,0.03747383]
[1731760875772,3.786435,3169.2,3169.1,0.03747383]
[1731760875985,3.15547,3169.1,3169.0,0.0193638]
[1731760881096,6.16547,3169.1,3169.0,3.8e-06]
[1731760881254,6.65347699,3169.1,3169.0,3.8e-06]
[1731760884659,6.64347699,3169.1,3169.0,3.8e-06]
[1731760885472,6.63347699,3169.1,3169.0,3.8e-06]
[1731760885653,6.64347699,3169.1,3169.0,3.8e-06]
[1731760885975,6.63347699,3169.1,3169.0,3.8e-06]
[1731760886362,6.64347699,3169.1,3169.0,3.8e-06]
[1731760887105,3.63347699,3169.1,3169.0,3.8e-06]
[1731760887252,3.15547,3169.1,3169.0,3.8e-06]
[1731760888783,3.80183538,3169.3,3169.0,3.8e-06]
[1731760889289,3.80183538,3169.3,3169.1,0.03413716]
[1731760889494,3.15537,3169.2,3169.1,0.03413716]
[1731760891070,3.85107954,3169.2,3169.1,0.03413716]
[1731760891370,3.15547,3169.1,3169.0,3.8e-06]
[1731760891567,0.64655538,3169.3,3169.0,3.8e-06]
[1731760891770,3.15545,3169.2,3169.0,3.8e-06]
[1731760892193,3.15545,3169.2,3169.1,0.034103]
[1731760892570,0.64655538,3169.3,3169.1,0.034103]
[1731760892977,0.64655538,3169.3,3169.2,3.15537]
[1731760893173,3.15477,3169.9,3169.2,3.47431768]
[1731760893377,3.15447,3170.1,3169.3,3.21830283]
[1731760893577,3.15447,3170.1,3169.3,3.1552]
[1731760893777,0.62907052,3169.8,3169.4,0.03411391]
[1731760894078,0.62907052,3169.8,3169.5,0.32524105]
[1731760894226,0.62907052,3169.8,3169.4,0.03411391]
[1731760894396,3.15487,3169.7,3169.6,0.03400997]
[1731760894584,3.15487,3169.7,3169.5,0.03386108]
[1731760894798,3.15487,3169.7,3169.6,0.03383454]
[1731760894986,0.62907052,3169.8,3169.6,0.03383454]
[1731760895188,0.62907052,3169.8,3169.1,0.61555538]
[1731760895424,0.62907052,3169.8,3169.7,0.03380799]
[1731760895621,0.62907052,3169.8,3169.2,3.15536]
[1731760896211,0.62907052,3169.8,3169.3,3.18903075]
[1731760896533,0.62907052,3169.8,3169.4,3.15515]
[1731760896690,3.15448,3170.1,3169.4,3.15515]
[1731760896887,3.15448,3170.1,3169.5,0.3525682]
[1731760897142,3.15464,3170.0,3169.5,0.3525682]
[1731760897296,3.65771225,3170.9,3169.5,0.03367612]
[1731760897297,3.15476,3169.9,3169.5,0.03367612]
[1731760897649,3.15448,3170.1,3169.5,0.03367612]
[1731760897869,3.15448,3170.1,3169.4,3.15509]
[1731760898012,3.15497,3169.6,3169.5,0.03248893]
[1731760898211,3.15497,3169.6,3169.0,3.8e-06]
[1731760898446,3.15547,3169.1,3169.0,3.8e-06]
[1731760901347,6.16547,3169.1,3169.0,3.8e-06]
[1731760905019,6.16547,3169.1,3167.7,0.005]
[1731760905020,0.01,3168.7,3167.7,0.005]
[1731760905222,3.15676,3167.8,3167.7,0.005]
[1731760906799,3.15618,3168.4,3167.7,0.005]
[1731760906975,3.15537,3169.2,3167.9,3.15658]
[1731760907296,3.15537,3169.2,3167.7,3.16182]
[1731760907297,3.15534,3169.3,3168.0,0.34876023]
[1731760907480,3.15635,3168.3,3168.0,0.03310223]
[1731760907650,3.15635,3168.3,3167.7,3.16185]
[1731760907852,3.15635,3168.3,3167.8,0.03313854]
[1731760908149,3.15648,3168.1,3167.8,0.03313854]
[1731760908369,3.15631,3168.3,3167.8,0.03313854]
[1731760909586,3.15639,3168.2,3167.8,0.03313854]
[1731760910551,0.61554771,3168.6,3167.8,3.18986854]
[1731760910747,3.15606,3168.5,3167.9,0.31948685]
[1731760910950,3.15608,3168.5,3167.9,0.31948685]
[1731760911175,3.15608,3168.5,3168.0,0.03324807]
[1731760911965,3.15574,3168.9,3168.1,3.15643]
[1731760912197,3.15524,3169.4,3168.0,0.03324807]
[1731760912198,3.15518,3169.4,3168.0,0.03324807]
[1731760912491,3.15518,3169.4,3168.6,3.15587]
[1731760912664,3.15518,3169.4,3168.7,0.03298006]
[1731760912889,3.15518,3169.4,3168.8,0.31888501]
[1731760913065,0.63250958,3169.3,3168.9,0.03292695]
[1731760913263,0.63250958,3169.3,3168.8,0.31888501]
[1731760913465,0.63250958,3169.3,3168.9,0.03292695]
[1731760913665,0.63250958,3169.3,3168.8,0.06311132]
[1731760913910,0.63250958,3169.3,3169.0,3.15555]
[1731760914206,0.63250958,3169.3,3169.1,3.25131104]
[1731760914396,0.63250958,3169.3,3169.2,0.3251311]
[1731760914706,0.63250958,3169.3,3169.2,0.03273871]
[1731760914902,0.63250958,3169.3,3168.9,3.15565]
[1731760915120,0.63250958,3169.3,3169.0,0.03279181]
[1731760915283,3.15537,3169.2,3168.5,6.15606]
[1731760915614,3.15518,3169.4,3168.6,3.80444023]
[1731760915814,3.15518,3169.4,3168.6,3.18883423]
[1731760915967,3.15528,3169.3,3168.6,3.18883423]
[1731760916490,3.15474,3169.9,3168.6,0.03287423]
[1731760916491,3.15574,3168.9,3168.6,0.03287423]
[1731760916690,3.15549,3169.1,3168.3,3.15626]
[1731760916866,3.15549,3169.1,3168.4,0.6642204]
[1731760917065,3.15565,3169.0,3168.4,0.0329594]
[1731760917268,3.15565,3169.0,3168.0,3.15654]
[1731760917508,3.15565,3169.0,3167.6,0.3346]
[1731760917509,3.15549,3169.1,3168.3,3.15621]
[1731760917675,3.15527,3169.3,3168.6,3.15596]
[1731760917881,3.15527,3169.3,3168.7,0.03289627]
[1731760918522,3.15565,3169.0,3168.7,0.03289627]
[1731760918670,0.64443658,3169.5,3168.1,3.15644]
[1731760918671,3.15551,3169.1,3168.3,3.15619]
[1731760918872,0.64443658,3169.5,3168.4,0.03298628]
[1731760919072,0.64443658,3169.5,3167.7,3.16186]
[1731760919073,3.15606,3168.5,3167.7,3.16186]
[1731760919314,3.15617,3168.4,3167.7,3.16186]
[1731760919569,3.15609,3168.5,3167.8,3.18986773]
[1731760920215,0.64443658,3169.5,3167.8,3.18986773]
[1731760920523,3.15597,3168.6,3167.8,3.15672]
[1731760920692,3.15597,3168.6,3167.9,0.03316672]
[1731760921022,3.15597,3168.6,3167.9,3.18981672]
[1731760921174,3.15597,3168.6,3167.9,3.25294172]
[1731760921487,3.15597,3168.6,3167.9,3.83129489]
[1731760922018,3.79474097,3168.8,3167.9,3.83129489]
[1731760922019,3.15608,3168.5,3167.9,3.18981672]
[1731760922726,3.15563,3169.0,3168.0,0.063125]
[1731760922876,3.15538,3169.2,3168.2,3.15636]
[1731760923076,3.15538,3169.2,3168.5,3.15606]
[1731760923280,3.15538,3169.2,3168.3,0.0962152]
[1731760923281,3.15538,3169.2,3168.6,3.18896762]
[1731760923479,3.15538,3169.2,3168.6,3.50786438]
[1731760923790,0.01,3170.2,3168.6,3.50786438]
[1731760923791,0.63411356,3169.0,3168.7,3.15581]
[1731760923990,0.63411356,3169.0,3168.8,3.15575]
[1731760924195,0.63411356,3169.0,3168.9,3.15566]
[1731760924583,3.15489,3169.7,3169.0,3.15552]
[1731760924805,0.61853133,3169.7,3169.2,3.15536]
[1731760925017,3.15467,3169.9,3169.3,0.0630989]
[1731760925193,3.15467,3169.9,3169.3,3.25103938]
[1731760925399,3.15397,3170.6,3169.4,0.32510394]
[1731760925719,3.15397,3170.6,3168.7,3.16586]
[1731760925720,3.15505,3169.6,3169.5,0.03261155]
[1731760926027,3.15479,3169.8,3169.0,3.15556]
[1731760926174,3.15479,3169.8,3169.5,0.03261155]
[1731760926379,3.15479,3169.8,3169.2,3.15535]
[1731760926626,3.1544,3170.2,3169.6,0.03258501]